[Event "Fall IM-D Norm Invitational 2022"]
[Site "Charlotte"]
[Date "2022.11.21"]
[Round "7"]
[White "Liu, Eric"]
[Black "Willy, Stephen"]
[Result "1-0"]
[ECO "C53"]
[WhiteElo "2182"]
[BlackElo "2159"]
[Annotator "TA"]
[PlyCount "55"]
[EventDate "2022.11.18"]
[EventType "tourn"]
[EventCountry "USA"]
[SourceTitle "playchess.com"]
[Source "ChessBase"]
[SourceQuality "1"]
[TimeControl "5400+30"]

{[%evp 12,55,21,14,17,16,16,13,32,27,42,45,38,37,49,49,50,35,53,43,95,85,107,102,103,74,100,83,107,65,64,33,56,37,67,69,274,123,170,173,164,181,170,163,263,259]} 1. e4 {[%emt 0:00:03]} e5 {[%emt 0:00:04]} 2. Nf3 {[%emt 0:00:04]} Nc6 {[%emt 0:00:04]} 3. Bc4 {[%emt 0:00:04]} Bc5 {[%emt 0:00:06]} 4. c3 {[%emt 0:00:04]} Nf6 {[%emt 0:00:05]} 5. d3 {[%emt 0:00:04]} d6 {[%emt 0:00:05]} 6. Nbd2 {[%emt 0:00:03]} a6 {[%emt 0:00:05]} 7. Bb3 {[%emt 0:00:04]} h6 {[%emt 0:00:14] C54: Giuoco Piano: 4 c3 Nf6, main lines with 5 d4 and 5 d3.} 8. O-O {[%emt 0:00:06]} Ba7 {[%emt 0:00:11]} 9. Re1 {[%emt 0:00:15]} Bd7 {[%emt 0:00:07] The position is equal.} 10. Nf1 {[%emt 0:00:30]} g5 {[%emt 0:00:28]} 11. Be3 {[%emt 0:00:39]} g4 {[%emt 0:00:10]} 12. N3d2 {[%emt 0:00:06][%cal Bf3d2,Bd2c4,Bc4e3][%mdl 32]} h5 {[%emt 0:00:08] [#]} 13. Bxa7 $146 {[%emt 0:01:20]} ({Predecessor:} 13. Bg5 h4 14. Ne3 Rh5 15. f4 gxf3 16. Bxf6 f2+ 17. Kxf2 Qxf6+ 18. Qf3 Qg6 19. Kg1 {0-1 (36) Liu,E (2190)-Khanin,S (2550) Rancho Mirage 2022}) 13... Nxa7 {[%emt 0:00:13]} 14. Nc4 {[%emt 0:07:55]} h4 {[%emt 0:03:46]} 15. Nce3 {[%emt 0:03:11]} c6 {[%emt 0:09:46]} (15... Rg8 $14) 16. d4 {[%emt 0:06:53]} Qc7 {[%emt 0:07:05]} 17. dxe5 {[%emt 0:12:44]} dxe5 {[%emt 0:00:16]} 18. Nc4 {[%emt 0:00:42][%cal Of2f4] White is more active.} Ke7 {[%emt 0:05:06] Inhibits f4.} 19. Qe2 {[%emt 0:00:40]} Nc8 {[%emt 0:09:43]} 20. Qe3 {[%emt 0:00:59]} c5 {[%emt 0:00:20]} 21. Qd2 {[%emt 0:12:31]} ({Don't play} 21. Qg5 Rh5 22. Qd2 (22. Qg7 Ne8 $11) 22... Be6) 21... Be6 {[%emt 0:08:22]} 22. Nce3 {[%emt 0:04:17] And now Bxe6 would win.} (22. Nfe3 $5 {[%cal Re3d5]} b5 23. Nf5+ Bxf5 24. Nxe5 $16) 22... c4 {[%emt 0:02:06]} 23. Bc2 {[%emt 0:01:06]} Rd8 $2 {[%emt 0:06:36] [#] Prevents Nd5+.} ({Black should play} 23... Nb6 $14) 24. Qe2 {[%emt 0:00:26]} (24. Nd5+ $1 $18 Nxd5 25. exd5) 24... Nd6 {[%emt 0:00:55]} (24... Nb6 $16 {keeps fighting.}) 25. Nd5+ $1 $18 {[%emt 0:14:36]} Bxd5 {[%emt 0:00:41]} (25... Nxd5 $2 26. exd5 Bxd5 27. Qxe5+ Be6 28. Rad1 $18) 26. exd5 {[%emt 0:00:03]} e4 {[%emt 0:00:34]} 27. Nd2 {[%emt 0:01:37][%cal Rd2e4]} Kf8 {[%emt 0:00:20] [#]} (27... Qc5 {might work better.}) 28. Qe3 $1 {[%emt 0:01:55] Weighted Error Value: White=0.18 (very precise) /Black=0.35} ({Stronger than} 28. Bxe4 Qc5 29. Kh1 Re8 $11) ({Weaker is} 28. Nxe4 Ndxe4 29. Bxe4 Re8 $16) 1-0